Cogmind - Beta 11.1 @@@ ROGUE MODE // 2022.08.09 @ 20:32:32 Player: Inverisimilidude Result: Destroyed by as-75383 with Assembled Heavy Rifle Performance ------------- Evolutions (0) 0 Regions Visited (2) 400 Robots Destroyed (8) 40 Value Destroyed (223) 223 Prototype IDs (0) 0 Alien Tech Used (0) 0 Bonus (0) 0 TOTAL SCORE: 663 Bonus ------- None Cogmind --------- Core Integrity 0/250 Matter 154/300 Energy 36/250 System Corruption 11% Temperature Cool (30) Movement Core (250) Ox4 Location -10/Mines Parts ------- > --- POWER (1) -------- Ion Engine > --- PROPULSION (2) --- (None) > --- UTILITY (2) ------ Small Storage Unit > --- WEAPON (2) ------- EM Pulse Gun Medium Laser > --- INVENTORY (8) ---- Large Storage Unit Medium Matter Pod (49) Mining Laser Peak State ------------ > --- POWER ------------ Ion Engine > --- PROPULSION ------- Aluminum Leg Aluminum Leg > --- UTILITY ---------- Heat Sink Small Storage Unit > --- WEAPON ----------- Medium Laser Light Cannon > --- INVENTORY -------- Ion Engine Large Storage Unit Medium Matter Pod EM Pulse Gun Light Cannon Grenade Launcher Grenade Launcher [Rating: 7] Favorites ----------- Power Ion Engine Engine Ion Engine Propulsion Aluminum Leg Leg Aluminum Leg Wheel Wheel Utility Small Storage Unit Device Heat Sink Storage Small Storage Unit Weapon Medium Laser Energy Gun Medium Laser Ballistic Gun Assault Rifle Ballistic Cannon Light Cannon Launcher Grenade Launcher Build | -11 -10 -10 ------- Run | Scr Mat Min Slots Evolved . | . . . Power . | . . . Propulsion . | . . . Utility . | . . . Weapon . | . . . Parts Attached 22 | 6 9 7 Power 3 | 1 1 1 Engine 3 | 1 1 1 Core . | . . . Reactor . | . . . Propulsion 5 | 2 3 . Treads . | . . . Leg 3 | . 3 . Wheel 2 | 2 . . Hover . | . . . Flight . | . . . Utility 2 | 1 1 . Device 1 | . 1 . Storage 1 | 1 . . Processor . | . . . Hackware . | . . . Protection . | . . . Artifact . | . . . Weapon 12 | 2 4 6 Energy Gun 3 | 1 . 2 Energy Cannon . | . . . Ballistic Gun 3 | 1 2 . Ballistic Cannon 3 | . 1 2 Launcher 3 | . 1 2 Special Weapon . | . . . Impact Weapon . | . . . Slashing Weapon . | . . . Piercing Weapon . | . . . Special Melee Weapon . | . . . Unidentified Prototypes . | . . . Parts Lost 9 | . 2 7 Power 1 | . . 1 Propulsion 4 | . 2 2 Utility 1 | . . 1 Weapon 3 | . . 3 Highest Loss Streak 7 | . 1 7 To Critical Strikes . | . . . Average Slot Usage (%) 82 | . 84 61 Engine 13 | . 14 4 Leg 19 | . 20 14 Wheel 5 | . 6 . Device 1 | . 1 4 Storage 14 | . 14 14 Energy Gun 13 | . 14 4 Ballistic Gun 10 | . 11 . Ballistic Cannon 2 | . 1 9 Launcher 1 | . . 9 Naked Turns . | . . . Heaviest Build 16 | 14 16 16 Greatest Support 26 | 26 26 20 Greatest Overweight (x) 1 | . 1 . Average Overweight (x) . | . . . Largest Inventory Capacity 8 | 8 8 8 Average Capacity 7 | 7 8 8 Most Carried 8 | 4 8 8 Average Carried 6 | 2 6 6 Final Capacity 8 | 8 8 8 Final Carried 8 | 4 8 3 Class Distribution -------------------- 100% | Mutant Dominant Class ---------------- Mutant | -10/Materials Mutant | -10/Mines Resources | -11 -10 -10 ----------- Run | Scr Mat Min Matter Collected 450 | 234 216 . Remotely . | . . . Salvage Created 272 | . 222 50 Parts 14 | . 14 . Haulers Intercepted . | . . . Recyclers Shooed . | . . . Parts Field Recycled . | . . . Retrieved Matter . | . . . Parts Self-Destructed . | . . . Prevented . | . . . Kills | -11 -10 -10 ------- Run | Scr Mat Min Combat Hostiles Destroyed 24 | . 8 16 Guns 7 | . 7 . Cannons 2 | . . 2 AOE 15 | . 1 14 Classes Destroyed 3 | . 2 1 Swarmer 3 | . 3 . Grunt 5 | . 5 . Assembled 16 | . . 16 Best Kill Streak 16 | . 3 16 Combat Bots Only 16 | . 3 16 Max Kills in Single Turn 9 | . 2 9 Gunslinging 1 | . 1 . Exploded 9 | . 1 9 Melee . | . . . Uniques/NPCs Destroyed . | . . . Combat | -11 -10 -10 -------- Run | Scr Mat Min Damage Taken 1145 | . 357 788 Core 263 | . 52 211 Absorbed by Shields . | . . . Core Remaining (%) 100 | 100 . . Volleys Fired 37 | . 28 9 Largest 2 | . 2 2 Hottest 90 | . 70 90 Shots Fired 66 | . 52 14 Gun 53 | . 48 5 Cannon 5 | . . 5 Launcher 8 | . 4 4 Special . | . . . Kinetic 29 | . 24 5 Thermal 25 | . 24 1 Explosive 8 | . 4 4 Electromagnetic 4 | . . 4 Robot Hit Streak 7 | . 7 3 Robot Miss Streak 3 | . 3 1 Penetration Max . | . . . Secondary Targets 1 | . 1 . Max Gunslinging Chain 1 | . 1 . Shots Hit Robots 40 | . 30 10 Core Hits 53 | . 15 38 Critical Kills . | . . . Critical Parts Destroyed . | . . . Critical Strikes 2 | . 2 . Burn 2 | . 2 . Melee Attacks . | . . . Impact . | . . . Slashing . | . . . Piercing . | . . . Sneak Attacks . | . . . Combat Hostiles . | . . . Follow-up Attacks . | . . . Damage Inflicted 1580 | . 538 1042 Guns 451 | . 404 47 Cannons 52 | . . 52 Explosions 1077 | . 134 943 Melee . | . . . Ramming . | . . . Kinetic 215 | . 163 52 Thermal 254 | . 241 13 Explosive 1077 | . 134 943 Electromagnetic 34 | . . 34 Impact . | . . . Slashing . | . . . Piercing . | . . . Highest Corruption 11 | . . 11 Average Corruption 10 | . . 10 Corruption Purged . | . . . Corruption Blocked . | . . . Effects 2 | . . 2 Parts Rejected 1 | . . 1 Weapon Failures 1 | . . 1 Overload Shots . | . . . Overflow Damage 13 | . . 13 Projectiles 13 | . . 13 Explosions . | . . . Melee . | . . . Knockbacks 1 | . . 1 Impact . | . . . Kinetic 1 | . . 1 Secondary . | . . . Self-Inflicted Damage 119 | . . 119 Shots 4 | . . 4 Rammed . | . . . Targets Rammed . | . . . Kicked . | . . . Crushed . | . . . Highest Temperature 81 | . 81 30 Average Temperature 33 | . 33 20 Received Heat Transfer 174 | . 114 60 Siege Activations . | . . . Robots Corrupted . | . . . Combat Hostiles . | . . . Parts Fried . | . . . Impact Corruptions . | . . . Robots Melted . | . . . Combat Hostiles . | . . . Parts Melted 1 | . 1 . Heat Transferred 888 | . 851 37 Parts Sabotaged . | . . . Parts Stolen . | . . . Parts Stripped . | . . . Power Chain Reactions . | . . . Missiles Intercepted . | . . . Alert | -11 -10 -10 ------- Run | Scr Mat Min Peak Influence 295 | . 295 177 Initial 114 | . . 114 Average 138 | . 159 123 Maximum Alert Level 1 | . 1 . Low Security (%) 58 | 100 49 100 Level 1 41 | . 50 . Level 2 . | . . . Level 3 . | . . . Level 4 . | . . . Level 5 . | . . . High Security . | . . . Max Security . | . . . Squads Dispatched 2 | . 2 . Investigation . | . . . Extermination . | . . . Reinforcement 2 | . 2 . Assault . | . . . Garrison . | . . . Intercept . | . . . Searches Triggered . | . . . Construction Impeded . | . . . Haulers Reinforced . | . . . Active Scanning Responses . | . . . Cargo Convoy Interrupts . | . . . Stealth | -11 -10 -10 --------- Run | Scr Mat Min Distress Signals . | . . . Communications Jammed . | . . . Distress Signals . | . . . Times Spotted 31 | . 11 20 Peak Tracking Total 20 | . 3 20 Tactical Retreats . | . . . Traps | -11 -10 -10 ------- Run | Scr Mat Min Traps Triggered . | . . . Indirectly . | . . . Trap Hack Attempts . | . . . Triggered . | . . . Disarmed . | . . . Reprogrammed . | . . . Reused . | . . . Traps Extracted . | . . . Installed . | . . . Triggered . | . . . Machines | -11 -10 -10 ---------- Run | Scr Mat Min Machines Disabled 1 | . 1 . Max in Single Turn 1 | . 1 . Machines Sabotaged . | . . . Garrisons Compromised . | . . . Overloaded Fab Kills . | . . . Hacking | -11 -10 -10 --------- Run | Scr Mat Min Machines Accessed 4 | . 4 . Terminals 4 | . 4 . Fabricators . | . . . Repair Stations . | . . . Recycling Units . | . . . Scanalyzers . | . . . Garrison Access . | . . . Total Hacks 6 | . 6 . Successful 3 | . 3 . Failed 3 | . 3 . Catastrophic . | . . . Database Lockouts . | . . . Manual 3 | . 3 . Terminals 6 | . 6 . Fabricators . | . . . Repair Stations . | . . . Recycling Units . | . . . Scanalyzers . | . . . Garrison Access . | . . . Terminal Hacks 2 | . 2 . Branch Access Points 1 | . 1 . Zone Layout 1 | . 1 . Fabricator Hacks . | . . . Repair Station Hacks . | . . . Recycling Unit Hacks . | . . . Scanalyzer . | . . . Garrison Access Hacks . | . . . Unauthorized Hacks 1 | . 1 . Terminals 1 | . 1 . Assimilate 1 | . 1 . Fabricators . | . . . Repair Stations . | . . . Recycling Units . | . . . Scanalyzers . | . . . Garrison Access . | . . . Data Cores Recovered . | . . . Used . | . . . Hacking Detections 1 | . 1 . Full Trace Events . | . . . Feedback Events . | . . . Feedback Blocked . | . . . Robot Schematics Acquired . | . . . Robots Built . | . . . Authchips . | . . . Time . | . . . Total Robot Build Rating . | . . . Part Schematics Acquired . | . . . Parts Built . | . . . Authchips . | . . . Time . | . . . Total Part Build Rating . | . . . Parts Repaired . | . . . Time . | . . . Parts Recycled . | . . . Recycled Matter . | . . . Retrieved Matter . | . . . Retrieved Components . | . . . Parts Scanalyzed . | . . . Part Schematics Acquired . | . . . Parts Damaged . | . . . Bothacking | -11 -10 -10 ------------ Run | Scr Mat Min Used RIF Installer . | . . . Robots Hacked . | . . . Non-combat . | . . . Combat . | . . . Robot Hacks Applied . | . . . Relay Couplers Released . | . . . Fabnet Peak Effective % . | . . . Robots Rewired . | . . . Allies Hacked . | . . . Hacks Repelled . | . . . Allies | -11 -10 -10 -------- Run | Scr Mat Min Total Allies . | . . . Largest Group . | . . . Highest-Rated Group . | . . . Highest-Rated Ally . | . . . Total Orders . | . . . Ally Attacks . | . . . Total Damage . | . . . Kills . | . . . Allies Corrupted . | . . . Allies Melted . | . . . Intel | -11 -10 -10 ------- Run | Scr Mat Min Robot Analysis Total . | . . . Derelict Logs Recovered . | . . . Drone Launches . | . . . Drone Recoveries . | . . . Exploration | -11 -10 -10 ------------- Run | Scr Mat Min Turns Passed 455 | 53 371 31 Spaces Moved 260 | 41 218 1 Core 1 | 1 . . Treads . | . . . Legs 156 | . 155 1 Wheels 103 | 40 63 . Hover . | . . . Flight . | . . . Fastest Speed 50 | 50 90 120 Average Speed 109 | 88 113 120 Slowest Speed 190 | 90 190 120 Overloaded Moves . | . . . Propulsion Burnouts . | . . . Robots Hopped . | . . . Cave-ins Triggered . | . . . Exploration Rate (%) 16 | 4 41 5 Regions Visited 2 Branch Regions 1 Pre-discovered Areas . | . . . Known Exits Taken 1 | . 1 . Unknown Exits Taken 1 | 1 . . Scrap Searched . | . . . Spaces Dug . | . . . Terrain Destroyed 54 | . 25 29 Melee . | . . . Projectile . | . . . AOE 54 | . 25 29 Terrain Rammed . | . . . Walls Destroyed . | . . . Machines Disabled . | . . . Actions | -11 -10 -10 --------- Run | Scr Mat Min Total 359 | 54 288 17 Wait 24 | 4 20 . Move 258 | 40 217 1 Hop . | . . . Pick Up 13 | 4 9 . Fast Attach 8 | 6 2 . Attach 8 | . 3 5 Detach . | . . . Swap 6 | . 4 2 Drop 5 | . 5 . Fire 37 | . 28 9 Melee . | . . . Ram . | . . . Kick . | . . . Crush . | . . . Escape Stasis . | . . . Rewire . | . . . Trap . | . . . Miscellaneous . | . . . Route ------- -11/Scrapyard -10/Materials -10/Mines History --------- Turn | Location | Event 23 | -11/Scrapyard | Discovered new exit (range 16) 54 | -11/Scrapyard | Entered Materials 196 | -10/Materials | Identified exit to Mines 314 | -10/Materials | Build established: Mutant 425 | -10/Materials | Entered Mines 426 | -10/Mines | Assembled infested the area 434 | -10/Mines | Core integrity fell below 50% 436 | -10/Mines | System corruption reached 10% 446 | -10/Mines | Core integrity fell below 20% 456 | -10/Mines | Destroyed by as-75383 with Assembled Heavy Rifle Last Messages --------------- 00433_ as-81375 destroyed. 00434_ Heat Sink destroyed. 00434_ Ion Engine destroyed. 00434_ System corrupted by crushing effect (+4). 00434_ System corrupted by crushing effect (+5). 00434_ Aluminum Leg destroyed. 00435_ Grenade Launcher destroyed. 00435_ System corrupted by crushing effect (+1). 00435_ Grenade Launcher destroyed. 00438_ System corrupted: Lgt. Cannon rejected. 00438_ as-91406 destroyed. [Achievement: Exterminator] 00440_ as-40026 knocked back. 00444_ Aluminum Leg destroyed. 00444_ System corrupted by crushing effect (+1). 00444_ Knocked back. 00448_ Destroyed Asb. Hover Unit. 00448_ as-40026 destroyed. 00450_ Lgt. Cannon destroyed. 00456_ System corrupted: Med. Laser failed to cycle. Map ----- +----------------------------------------------------+ | | | | | | | | | | | | | | | | | | | | | | | | | | | | | | | | | ???????????????????????????????????? | | ???????????????????????????????????? | | ???????????????????????????????????? | | ?????????########?##???????????????? | | ?????????# # # #???????????????? | | # ???????# ##??????????????? | | # !! ???## % ##?????????????? | | # !! ## aa % ##????????????? | | # !! ] % a< #????????????? | | # @ %% #????????????? | | ??#### % a ????????? | | ?????# ####### #### ????????? | | ?????## #???????? ##?????????????? | | ??????###???????????#??????????????? | | ???????????????????????????????????? | | ???????????????????????????????????? | | ???????????????????????????????????? | | ???????????????????????????????????? | | ???????????????????????????????????? | | ???????????????????????????????????? | | ???????????????????????????????????? | | ???????????????????????????????????? | | ???????????????????????????????????? | | ???????????????????????????????????? | | ???????????????????????????????????? | | ???????????????????????????????????? | | ???????????????????????????????????? | | ???????????????????????????????????? | | ???????????????????????????????????? | | ???????????????????????????????????? | | ???????????????????????????????????? | | ???????????????????????????????????? | | ???????????????????????????????????? | | ???????????????????????????????????? | +----------------------------------------------------+ Best States ------------- Heat Dissipation 35 Energy Generation 10 Energy Capacity 250 Matter Stores 300 Matter Capacity 300 Sight Range 16 Terrain Scan Density 10 Evasion (%) 55 Item Schematics ----------------- None Robot Schematics ------------------ None Fabricated ------------ Nothing Alien Tech Used ----------------- None Achievements -------------- Exterminator Challenges ------------ None Game ------ Seed NovaMatterRay Manual? 0 Play Time 00:08:59 Cumulative 27.7 hours Start 2022.08.07 @ 23:32:25 End 2022.08.09 @ 20:32:32 Sessions 2 Manual Loads 0 Difficulty Rogue Special Mode None Game No. 30 Rogue 30 Adventurer 0 Explorer 0 Win Type - Total 0 Types 0/0/0/0/0/0/0/0/0 Lore% 30 Gallery% 27 Achievement% 27 Wizard Run 0 Options --------- ASCII 0 Keyboard 0 Movement Arrows Keybinds 0 Fullscreen 1 Font 18/SmallcapsGlow Map View 76x50 Tactical HUD 1 Map Filters NONE Filters NONE Steam 1 RUN: 675c68ed-53e1-4d2e-8981-00abd5da5c68